[Event "Early-Titled-Tuesday-Blitz-January-16-2024"]
[Site "Chess.com"]
[Date "2024.01.16"]
[Round "2"]
[White "Volodar_Murzin"]
[Black "MokshAD1603"]
[Result "1-0"]
[WhiteElo "2929"]
[BlackElo "2604"]
[TimeControl "180+1"]
[EndTime "8:18:25 PST"]
[Termination "Volodar_Murzin won by checkmate"]

1. d4 {[%clk 0:03:00.9]} 1... Nf6 {[%clk 0:02:59.6]} 2. Nf3 {[%clk 0:03:01.3]}
2... d5 {[%clk 0:02:58.8]} 3. Bf4 {[%clk 0:03:00.8]} 3... c5 {[%clk 0:02:55.2]}
4. e3 {[%clk 0:03:00.9]} 4... Nc6 {[%clk 0:02:55.2]} 5. Nbd2 {[%clk 0:03:00.7]}
5... cxd4 {[%clk 0:02:48.9]} 6. exd4 {[%clk 0:03:01.6]} 6... Qb6 {[%clk
0:02:49.1]} 7. Nb3 {[%clk 0:03:01]} 7... Bg4 {[%clk 0:02:47.6]} 8. c3 {[%clk
0:02:57.5]} 8... e6 {[%clk 0:02:47.1]} 9. Be2 {[%clk 0:02:54.9]} 9... Be7 {[%clk
0:02:45.5]} 10. a4 {[%clk 0:02:53]} 10... a6 {[%clk 0:02:44.8]} 11. a5 {[%clk
0:02:50.5]} 11... Qd8 {[%clk 0:02:45.4]} 12. Ne5 {[%clk 0:02:50.9]} 12... Bxe2
{[%clk 0:02:45.2]} 13. Qxe2 {[%clk 0:02:51.8]} 13... Rc8 {[%clk 0:02:44.5]} 14.
Nxc6 {[%clk 0:02:44.6]} 14... Rxc6 {[%clk 0:02:43.8]} 15. O-O {[%clk 0:02:44]}
15... O-O {[%clk 0:02:44.4]} 16. Nc1 {[%clk 0:02:41.1]} 16... Ne4 {[%clk
0:02:38.8]} 17. Nd3 {[%clk 0:02:39.1]} 17... Bg5 {[%clk 0:02:23.7]} 18. f3
{[%clk 0:02:30.6]} 18... Nd6 {[%clk 0:02:22.1]} 19. Bxd6 {[%clk 0:02:28.5]}
19... Qxd6 {[%clk 0:02:18.6]} 20. f4 {[%clk 0:02:27.5]} 20... Be7 {[%clk
0:02:05]} 21. f5 {[%clk 0:02:24.5]} 21... Bf6 {[%clk 0:01:45.5]} 22. fxe6 {[%clk
0:02:13.7]} 22... fxe6 {[%clk 0:01:44.2]} 23. Rae1 {[%clk 0:02:12.5]} 23... Re8
{[%clk 0:01:42.7]} 24. Qh5 {[%clk 0:02:05.2]} 24... Re7 {[%clk 0:01:32.1]} 25.
Rf3 {[%clk 0:01:49.1]} 25... Rc8 {[%clk 0:01:30.2]} 26. Rfe3 {[%clk 0:01:44.6]}
26... Rce8 {[%clk 0:01:25.9]} 27. h3 {[%clk 0:01:26.1]} 27... Qc7 {[%clk
0:01:25.4]} 28. Qg4 {[%clk 0:01:20.8]} 28... Qxa5 {[%clk 0:01:08.3]} 29. Rxe6
{[%clk 0:01:09.1]} 29... Qd8 {[%clk 0:01:06.4]} 30. Nf4 {[%clk 0:01:03.1]} 30...
h6 {[%clk 0:00:53.5]} 31. Qf5 {[%clk 0:00:53.4]} 31... Bh4 {[%clk 0:00:43.1]}
32. Rxe7 {[%clk 0:00:38.3]} 32... Rxe7 {[%clk 0:00:42.9]} 33. Rxe7 {[%clk
0:00:37.3]} 33... Qxe7 {[%clk 0:00:43.8]} 34. Qxd5+ {[%clk 0:00:37.4]} 34... Kh7
{[%clk 0:00:42]} 35. Qe6 {[%clk 0:00:27.6]} 35... Qf8 {[%clk 0:00:33.6]} 36.
Qe4+ {[%clk 0:00:21.9]} 36... Kg8 {[%clk 0:00:32.3]} 37. Nd3 {[%clk 0:00:20]}
37... Bg5 {[%clk 0:00:30.5]} 38. Qxb7 {[%clk 0:00:18.1]} 38... Be3+ {[%clk
0:00:30.7]} 39. Kh2 {[%clk 0:00:18.1]} 39... Qf1 {[%clk 0:00:30.1]} 40. Qa8+
{[%clk 0:00:17.1]} 40... Kf7 {[%clk 0:00:27.2]} 41. Ne5+ {[%clk 0:00:17.2]}
41... Ke6 {[%clk 0:00:26.1]} 42. Qe8+ {[%clk 0:00:15.6]} 42... Kd5 {[%clk
0:00:24.7]} 43. Qc6# {[%clk 0:00:15.8]} 1-0

[Event "Early-Titled-Tuesday-Blitz-January-16-2024"]
[Site "Chess.com"]
[Date "2024.01.16"]
[Round "2"]
[White "anasta10"]
[Black "NinoMaisuradze"]
[Result "0-1"]
[WhiteElo "2499"]
[BlackElo "2284"]
[TimeControl "180+1"]
[EndTime "8:18:25 PST"]
[Termination "NinoMaisuradze won on time"]

1. Nf3 {[%clk 0:03:00.9]} 1... d5 {[%clk 0:02:59.9]} 2. d4 {[%clk 0:02:58.6]}
2... Nf6 {[%clk 0:03:00.8]} 3. c4 {[%clk 0:02:56.7]} 3... e6 {[%clk 0:03:00.9]}
4. Nc3 {[%clk 0:02:57.1]} 4... Be7 {[%clk 0:02:59.9]} 5. cxd5 {[%clk 0:02:56]}
5... exd5 {[%clk 0:03:00.1]} 6. Bg5 {[%clk 0:02:55.1]} 6... O-O {[%clk
0:02:59.9]} 7. e3 {[%clk 0:02:55.1]} 7... c6 {[%clk 0:03:00.2]} 8. Bd3 {[%clk
0:02:54.8]} 8... Bg4 {[%clk 0:03:00.4]} 9. h3 {[%clk 0:02:54.8]} 9... Bh5 {[%clk
0:03:00.6]} 10. Qc2 {[%clk 0:02:53.6]} 10... Bg6 {[%clk 0:03:00.7]} 11. Ne5
{[%clk 0:02:49.2]} 11... Bxd3 {[%clk 0:02:59.5]} 12. Qxd3 {[%clk 0:02:50]} 12...
Nbd7 {[%clk 0:02:59.6]} 13. Bxf6 {[%clk 0:02:47.4]} 13... Bxf6 {[%clk
0:02:58.5]} 14. Ng4 {[%clk 0:02:37.9]} 14... Be7 {[%clk 0:02:56.2]} 15. O-O-O
{[%clk 0:02:31.2]} 15... Bd6 {[%clk 0:02:56.2]} 16. f4 {[%clk 0:02:30.8]} 16...
f6 {[%clk 0:02:53.9]} 17. Rde1 {[%clk 0:02:26.1]} 17... b5 {[%clk 0:02:48]} 18.
Kb1 {[%clk 0:02:26.1]} 18... b4 {[%clk 0:02:43]} 19. Ne2 {[%clk 0:02:25.9]}
19... Nb6 {[%clk 0:02:35.9]} 20. Nc1 {[%clk 0:02:20.9]} 20... a5 {[%clk
0:02:26.8]} 21. g3 {[%clk 0:02:04.3]} 21... a4 {[%clk 0:02:26.1]} 22. e4 {[%clk
0:02:04.8]} 22... dxe4 {[%clk 0:02:25.9]} 23. Qxe4 {[%clk 0:02:01.9]} 23... a3
{[%clk 0:02:23.1]} 24. b3 {[%clk 0:01:56.6]} 24... Nd5 {[%clk 0:02:23.1]} 25.
Ka1 {[%clk 0:01:44.8]} 25... Qb6 {[%clk 0:02:17.6]} 26. Qd3 {[%clk 0:01:36.7]}
26... Rad8 {[%clk 0:02:12.8]} 27. Qc4 {[%clk 0:01:24]} 27... Kh8 {[%clk
0:02:12.3]} 28. Re6 {[%clk 0:01:18]} 28... Nc7 {[%clk 0:01:53.7]} 29. Re2 {[%clk
0:01:10.3]} 29... Nb5 {[%clk 0:01:53.2]} 30. Rd2 {[%clk 0:01:00.6]} 30... Rfe8
{[%clk 0:01:45.4]} 31. d5 {[%clk 0:00:23.6]} 31... cxd5 {[%clk 0:01:39.3]} 32.
Rxd5 {[%clk 0:00:24.5]} 32... Nc3 {[%clk 0:01:39.6]} 33. Rd3 {[%clk 0:00:22]}
33... Rc8 {[%clk 0:01:36.9]} 34. Qd4 {[%clk 0:00:13.5]} 34... Bc5 {[%clk
0:01:35.5]} 35. Qd7 {[%clk 0:00:10.4]} 35... Rcd8 {[%clk 0:01:30.6]} 36. Qf7
{[%clk 0:00:10]} 36... Bd4 {[%clk 0:01:16.4]} 37. Qh5 {[%clk 0:00:03.3]} 37...
Qc6 {[%clk 0:00:56.1]} 38. Rf1 {[%clk 0:00:02.3]} 38... Nxa2+ {[%clk 0:00:53.6]}
39. Kb1 {[%clk 0:00:01.8]} 39... Nc3+ {[%clk 0:00:52.4]} 40. Ka1 {[%clk
0:00:01.7]} 40... Ne4+ {[%clk 0:00:41]} 41. Kb1 {[%clk 0:00:01.9]} 41... Rc8
{[%clk 0:00:35]} 0-1

[Event "Early-Titled-Tuesday-Blitz-January-16-2024"]
[Site "Chess.com"]
[Date "2024.01.16"]
[Round "2"]
[White "Eesha-Karavade"]
[Black "GMT4114"]
[Result "1-0"]
[WhiteElo "2440"]
[BlackElo "1978"]
[TimeControl "180+1"]
[EndTime "8:18:25 PST"]
[Termination "Eesha-Karavade won on time"]

1. d4 {[%clk 0:02:56.9]} 1... e6 {[%clk 0:03:00]} 2. Nf3 {[%clk 0:02:56.4]} 2...
f5 {[%clk 0:03:00.4]} 3. g3 {[%clk 0:02:54]} 3... Nf6 {[%clk 0:03:00.7]} 4. Bg2
{[%clk 0:02:54.4]} 4... Be7 {[%clk 0:03:00.9]} 5. c4 {[%clk 0:02:54.3]} 5... d6
{[%clk 0:03:01.4]} 6. Nc3 {[%clk 0:02:54.4]} 6... O-O {[%clk 0:03:01.9]} 7. O-O
{[%clk 0:02:54.5]} 7... Ne4 {[%clk 0:03:02.5]} 8. Qc2 {[%clk 0:02:52.7]} 8...
Nxc3 {[%clk 0:03:01.7]} 9. bxc3 {[%clk 0:02:52.6]} 9... Nc6 {[%clk 0:02:55.6]}
10. e4 {[%clk 0:02:52.2]} 10... e5 {[%clk 0:02:32.2]} 11. c5 {[%clk 0:02:05.9]}
11... fxe4 {[%clk 0:02:12.3]} 12. Qxe4 {[%clk 0:02:05.1]} 12... Bf5 {[%clk
0:02:06.6]} 13. Qd5+ {[%clk 0:02:04.8]} 13... Kh8 {[%clk 0:02:02.6]} 14. dxe5
{[%clk 0:01:57.5]} 14... dxe5 {[%clk 0:01:52.2]} 15. c4 {[%clk 0:01:57.5]} 15...
Bf6 {[%clk 0:01:38.8]} 16. Bb2 {[%clk 0:01:44.6]} 16... Qe7 {[%clk 0:01:37.1]}
17. Qd2 {[%clk 0:01:36.6]} 17... Qxc5 {[%clk 0:01:25.5]} 18. Qd5 {[%clk
0:01:32.9]} 18... Qe7 {[%clk 0:01:13.1]} 19. Rfe1 {[%clk 0:01:33]} 19... Rad8
{[%clk 0:01:12]} 20. Qb5 {[%clk 0:01:33.1]} 20... Bc8 {[%clk 0:01:04.5]} 21.
Nxe5 {[%clk 0:01:27.8]} 21... Nxe5 {[%clk 0:00:59.5]} 22. Bxe5 {[%clk
0:01:18.5]} 22... c6 {[%clk 0:00:44.1]} 23. Qb2 {[%clk 0:01:16.3]} 23... Bxe5
{[%clk 0:00:41.7]} 24. Rxe5 {[%clk 0:01:16.1]} 24... Qf6 {[%clk 0:00:41.2]} 25.
Rae1 {[%clk 0:01:15.4]} 25... h6 {[%clk 0:00:13.2]} 26. h4 {[%clk 0:01:15]}
26... Rd7 {[%clk 0:00:10]} 27. f4 {[%clk 0:01:10.1]} 27... Rdd8 {[%clk
0:00:09.1]} 28. Qf2 {[%clk 0:01:08.9]} 28... Qf7 {[%clk 0:00:09.1]} 29. c5
{[%clk 0:01:06.7]} 29... Rfe8 {[%clk 0:00:09.2]} 30. Rxe8+ {[%clk 0:00:57.2]}
30... Rxe8 {[%clk 0:00:10.1]} 31. Rxe8+ {[%clk 0:00:57.4]} 31... Qxe8 {[%clk
0:00:11]} 32. Qd4 {[%clk 0:00:57.8]} 32... Qd7 {[%clk 0:00:11]} 33. Qxd7 {[%clk
0:00:55.2]} 33... Bxd7 {[%clk 0:00:11.8]} 34. Kf2 {[%clk 0:00:55.7]} 34... Kg8
{[%clk 0:00:12]} 35. Ke3 {[%clk 0:00:55.7]} 35... Kf8 {[%clk 0:00:12.9]} 36. Kd4
{[%clk 0:00:55.8]} 36... Ke7 {[%clk 0:00:13.8]} 37. Ke5 {[%clk 0:00:56]} 37...
Be6 {[%clk 0:00:12.6]} 38. a3 {[%clk 0:00:55.2]} 38... a5 {[%clk 0:00:11.7]} 39.
f5 {[%clk 0:00:54.8]} 39... Bb3 {[%clk 0:00:09.6]} 40. g4 {[%clk 0:00:54.1]}
40... Bc2 {[%clk 0:00:09.6]} 41. g5 {[%clk 0:00:53.9]} 41... hxg5 {[%clk
0:00:08.1]} 42. hxg5 {[%clk 0:00:54.2]} 42... Bd3 {[%clk 0:00:06.5]} 43. Bf3
{[%clk 0:00:53.9]} 43... Bc2 {[%clk 0:00:05.2]} 44. f6+ {[%clk 0:00:54]} 44...
gxf6+ {[%clk 0:00:06.1]} 45. gxf6+ {[%clk 0:00:54.4]} 45... Kf8 {[%clk
0:00:05.7]} 46. Bh5 {[%clk 0:00:54.3]} 46... Bb3 {[%clk 0:00:04.9]} 47. Kd6
{[%clk 0:00:54.4]} 1-0

[Event "Early-Titled-Tuesday-Blitz-January-16-2024"]
[Site "Chess.com"]
[Date "2024.01.16"]
[Round "2"]
[White "scarabee43"]
[Black "RandomNoob04"]
[Result "0-1"]
[WhiteElo "2814"]
[BlackElo "2580"]
[TimeControl "180+1"]
[EndTime "8:18:27 PST"]
[Termination "RandomNoob04 won by resignation"]

1. Nf3 {[%clk 0:03:00.9]} 1... g6 {[%clk 0:02:57.3]} 2. c4 {[%clk 0:03:00.1]}
2... c5 {[%clk 0:02:57]} 3. Nc3 {[%clk 0:02:59.9]} 3... Bg7 {[%clk 0:02:57.3]}
4. e3 {[%clk 0:02:57.3]} 4... Nf6 {[%clk 0:02:55.5]} 5. d4 {[%clk 0:02:57.7]}
5... cxd4 {[%clk 0:02:56.2]} 6. exd4 {[%clk 0:02:58]} 6... d5 {[%clk 0:02:57]}
7. Bg5 {[%clk 0:02:56.4]} 7... Ne4 {[%clk 0:02:52.8]} 8. Bf4 {[%clk 0:02:52.9]}
8... Nxc3 {[%clk 0:02:51.8]} 9. bxc3 {[%clk 0:02:52.3]} 9... O-O {[%clk
0:02:52.3]} 10. Bd3 {[%clk 0:02:45.6]} 10... dxc4 {[%clk 0:02:34.5]} 11. Bxc4
{[%clk 0:02:45.4]} 11... Qa5 {[%clk 0:02:35]} 12. Qb3 {[%clk 0:02:43.3]} 12...
Nc6 {[%clk 0:02:04.8]} 13. O-O {[%clk 0:02:42.8]} 13... Qf5 {[%clk 0:02:04.4]}
14. Bg3 {[%clk 0:02:29.2]} 14... Na5 {[%clk 0:02:04.5]} 15. Qb4 {[%clk
0:02:27.8]} 15... Nxc4 {[%clk 0:02:03.6]} 16. Qxc4 {[%clk 0:02:28.5]} 16... Be6
{[%clk 0:02:00]} 17. Qb4 {[%clk 0:02:25.8]} 17... Bd5 {[%clk 0:01:55.8]} 18. Ne5
{[%clk 0:02:24]} 18... Rac8 {[%clk 0:01:34.5]} 19. f3 {[%clk 0:01:51.8]} 19...
Rfe8 {[%clk 0:01:30.6]} 20. Rfe1 {[%clk 0:01:51.1]} 20... Bh6 {[%clk 0:01:23.5]}
21. Re2 {[%clk 0:01:48.7]} 21... Bg5 {[%clk 0:01:03.6]} 22. h4 {[%clk
0:01:44.8]} 22... Bf4 {[%clk 0:00:56.2]} 23. Kf2 {[%clk 0:01:22.8]} 23... Bxg3+
{[%clk 0:00:53.9]} 24. Kxg3 {[%clk 0:01:22.4]} 24... f6 {[%clk 0:00:38.7]} 25.
Ng4 {[%clk 0:01:21.7]} 25... Kf8 {[%clk 0:00:30.6]} 26. Rae1 {[%clk 0:01:19.1]}
26... Rc7 {[%clk 0:00:28.2]} 27. a4 {[%clk 0:00:46.5]} 27... h5 {[%clk
0:00:26.6]} 28. Ne3 {[%clk 0:00:45.2]} 28... Qd7 {[%clk 0:00:26.7]} 29. Nxd5
{[%clk 0:00:43.1]} 29... Qxd5 {[%clk 0:00:27.6]} 30. Re4 {[%clk 0:00:38.7]}
30... Kf7 {[%clk 0:00:25.5]} 31. R1e3 {[%clk 0:00:31]} 31... Qc4 {[%clk
0:00:25.1]} 32. Qb5 {[%clk 0:00:29.8]} 32... a6 {[%clk 0:00:17.4]} 33. Qxc4+
{[%clk 0:00:28.5]} 33... Rxc4 {[%clk 0:00:17.4]} 34. d5 {[%clk 0:00:29.2]} 34...
Rxe4 {[%clk 0:00:16.6]} 35. Rxe4 {[%clk 0:00:29.6]} 35... Rc8 {[%clk 0:00:17.4]}
36. c4 {[%clk 0:00:29]} 36... Rc5 {[%clk 0:00:17.5]} 37. Kf2 {[%clk 0:00:28]}
37... Ra5 {[%clk 0:00:17]} 38. Ke3 {[%clk 0:00:27.4]} 38... Rxa4 {[%clk
0:00:17.5]} 39. Kd4 {[%clk 0:00:27.8]} 39... b5 {[%clk 0:00:15.7]} 40. Kc5
{[%clk 0:00:21.9]} 40... Rxc4+ {[%clk 0:00:15.9]} 41. Rxc4 {[%clk 0:00:22.3]}
41... bxc4 {[%clk 0:00:16.8]} 42. Kxc4 {[%clk 0:00:23]} 42... Ke8 {[%clk
0:00:16.7]} 43. Kc5 {[%clk 0:00:23.7]} 43... Kd7 {[%clk 0:00:17.4]} 44. Kb6
{[%clk 0:00:24.3]} 44... Kd6 {[%clk 0:00:17.8]} 45. Kxa6 {[%clk 0:00:25.1]}
45... Kxd5 {[%clk 0:00:18.7]} 46. Kb6 {[%clk 0:00:25.2]} 46... e5 {[%clk
0:00:18.3]} 47. Kb5 {[%clk 0:00:23]} 47... f5 {[%clk 0:00:18.8]} 48. Kb4 {[%clk
0:00:23.6]} 48... Kd4 {[%clk 0:00:19.4]} 49. Kb3 {[%clk 0:00:24]} 49... Kd3
{[%clk 0:00:20]} 0-1

[Event "Early-Titled-Tuesday-Blitz-January-16-2024"]
[Site "Chess.com"]
[Date "2024.01.16"]
[Round "2"]
[White "rhungaski"]
[Black "IM_ArthurDW08"]
[Result "0-1"]
[WhiteElo "2526"]
[BlackElo "2791"]
[TimeControl "180+1"]
[EndTime "8:18:27 PST"]
[Termination "IM_ArthurDW08 won by resignation"]

1. e4 {[%clk 0:03:00.9]} 1... c5 {[%clk 0:02:55.9]} 2. Nf3 {[%clk 0:03:00.7]}
2... e6 {[%clk 0:02:53.7]} 3. d4 {[%clk 0:03:01.2]} 3... cxd4 {[%clk 0:02:54.5]}
4. Nxd4 {[%clk 0:03:02]} 4... a6 {[%clk 0:02:55.2]} 5. c4 {[%clk 0:03:00]} 5...
Nf6 {[%clk 0:02:50.8]} 6. Nc3 {[%clk 0:02:59.4]} 6... Qc7 {[%clk 0:02:51.3]} 7.
Be2 {[%clk 0:02:58.5]} 7... Bb4 {[%clk 0:02:47.9]} 8. Nc2 {[%clk 0:02:58.7]}
8... Be7 {[%clk 0:02:43.4]} 9. O-O {[%clk 0:02:58.6]} 9... d6 {[%clk 0:02:42.4]}
10. f4 {[%clk 0:02:48]} 10... O-O {[%clk 0:02:41.6]} 11. Qd3 {[%clk 0:02:46.7]}
11... Nbd7 {[%clk 0:02:40.2]} 12. b4 {[%clk 0:02:46.3]} 12... b6 {[%clk
0:02:40.4]} 13. Bb2 {[%clk 0:02:43.4]} 13... Bb7 {[%clk 0:02:40.2]} 14. Rac1
{[%clk 0:02:43.6]} 14... Rac8 {[%clk 0:02:35.1]} 15. Qg3 {[%clk 0:02:40.5]}
15... b5 {[%clk 0:02:13.4]} 16. cxb5 {[%clk 0:02:11.2]} 16... axb5 {[%clk
0:02:06.3]} 17. Bxb5 {[%clk 0:02:10.8]} 17... d5 {[%clk 0:01:27.1]} 18. exd5
{[%clk 0:02:03.8]} 18... exd5 {[%clk 0:01:26.6]} 19. Kh1 {[%clk 0:01:55.1]}
19... g6 {[%clk 0:01:03]} 20. Ne3 {[%clk 0:01:35.1]} 20... Qd8 {[%clk
0:00:35.8]} 21. Nf5 {[%clk 0:01:24.3]} 21... Bxb4 {[%clk 0:00:34.9]} 22. Nh6+
{[%clk 0:01:24.7]} 22... Kg7 {[%clk 0:00:33.7]} 23. Bxd7 {[%clk 0:01:25.4]}
23... Qxd7 {[%clk 0:00:28.9]} 24. Ne4 {[%clk 0:01:16.5]} 24... dxe4 {[%clk
0:00:25.2]} 25. Bxf6+ {[%clk 0:01:16.5]} 25... Kxf6 {[%clk 0:00:22.8]} 26. Qg5+
{[%clk 0:01:17.1]} 26... Kg7 {[%clk 0:00:23]} 27. Rcd1 {[%clk 0:00:59.9]} 27...
Qe6 {[%clk 0:00:18.2]} 28. f5 {[%clk 0:00:58.6]} 28... Qf6 {[%clk 0:00:18.6]}
29. Qg4 {[%clk 0:00:59.2]} 29... Kxh6 {[%clk 0:00:17.1]} 30. fxg6 {[%clk
0:00:55.1]} 30... Qxg6 {[%clk 0:00:18]} 31. Qd7 {[%clk 0:00:44]} 31... Bc6
{[%clk 0:00:12.7]} 32. Qd4 {[%clk 0:00:38.5]} 32... e3 {[%clk 0:00:12.9]} 33.
Rg1 {[%clk 0:00:31.4]} 33... Be7 {[%clk 0:00:10.5]} 34. Qxe3+ {[%clk 0:00:20.5]}
34... Bg5 {[%clk 0:00:10.5]} 35. Qh3+ {[%clk 0:00:21]} 35... Kg7 {[%clk
0:00:10.7]} 36. Qg3 {[%clk 0:00:20.6]} 36... Rcd8 {[%clk 0:00:09.6]} 37. Rxd8
{[%clk 0:00:20.6]} 37... Rxd8 {[%clk 0:00:10.5]} 38. Qc3+ {[%clk 0:00:21]} 38...
Qf6 {[%clk 0:00:10.2]} 39. Qg3 {[%clk 0:00:20.9]} 39... Kh8 {[%clk 0:00:09.2]}
40. Qc7 {[%clk 0:00:20.2]} 40... Bf4 {[%clk 0:00:08.8]} 41. Qb6 {[%clk
0:00:19.2]} 41... Bxh2 {[%clk 0:00:08.6]} 0-1

[Event "Early-Titled-Tuesday-Blitz-January-16-2024"]
[Site "Chess.com"]
[Date "2024.01.16"]
[Round "2"]
[White "viktorskliarov"]
[Black "Hikaru"]
[Result "0-1"]
[WhiteElo "2675"]
[BlackElo "3223"]
[TimeControl "180+1"]
[EndTime "8:18:28 PST"]
[Termination "Hikaru won by resignation"]

1. e4 {[%clk 0:03:00.9]} 1... b6 {[%clk 0:02:58.6]} 2. d4 {[%clk 0:03:01.1]}
2... Bb7 {[%clk 0:02:59.1]} 3. Bd3 {[%clk 0:03:01.8]} 3... e6 {[%clk 0:02:59.8]}
4. Qe2 {[%clk 0:03:02.2]} 4... d5 {[%clk 0:03:00]} 5. e5 {[%clk 0:03:01.8]} 5...
c5 {[%clk 0:03:00.4]} 6. c3 {[%clk 0:03:02.4]} 6... Qc8 {[%clk 0:03:01.1]} 7.
Nf3 {[%clk 0:02:54.7]} 7... Ba6 {[%clk 0:03:01.4]} 8. Bb5+ {[%clk 0:02:55]} 8...
Bxb5 {[%clk 0:03:00.6]} 9. Qxb5+ {[%clk 0:02:54.9]} 9... Nd7 {[%clk 0:03:00]}
10. O-O {[%clk 0:02:54.2]} 10... Ne7 {[%clk 0:02:59.5]} 11. a4 {[%clk
0:02:46.9]} 11... Nf5 {[%clk 0:02:58.6]} 12. Na3 {[%clk 0:02:33.3]} 12... c4
{[%clk 0:02:56.8]} 13. a5 {[%clk 0:02:31.6]} 13... a6 {[%clk 0:02:56.9]} 14. Qa4
{[%clk 0:02:31.2]} 14... b5 {[%clk 0:02:57.5]} 15. Qd1 {[%clk 0:02:28.1]} 15...
Ne7 {[%clk 0:02:56.5]} 16. Ng5 {[%clk 0:02:11.5]} 16... h6 {[%clk 0:02:56.6]}
17. Qh5 {[%clk 0:02:10.5]} 17... g6 {[%clk 0:02:54.5]} 18. Qh3 {[%clk
0:02:10.4]} 18... Bg7 {[%clk 0:02:51.8]} 19. Nf3 {[%clk 0:01:54.7]} 19... Nc6
{[%clk 0:02:51.8]} 20. Nc2 {[%clk 0:01:46.6]} 20... Qc7 {[%clk 0:02:51.6]} 21.
Nh4 {[%clk 0:01:36.1]} 21... Nf8 {[%clk 0:02:31.9]} 22. f4 {[%clk 0:01:12.5]}
22... Nxa5 {[%clk 0:02:31.2]} 23. g4 {[%clk 0:01:12]} 23... Nb3 {[%clk
0:02:31.2]} 24. Ra2 {[%clk 0:01:03.6]} 24... h5 {[%clk 0:02:16.2]} 25. f5 {[%clk
0:00:58.9]} 25... Nxc1 {[%clk 0:01:55.5]} 26. Rxc1 {[%clk 0:00:50.2]} 26... Bh6
{[%clk 0:01:55.6]} 27. Rca1 {[%clk 0:00:33.8]} 27... hxg4 {[%clk 0:01:55.5]} 28.
Qf1 {[%clk 0:00:29.7]} 28... gxf5 {[%clk 0:01:49]} 29. Rxa6 {[%clk 0:00:27.7]}
29... Rxa6 {[%clk 0:01:49.9]} 30. Rxa6 {[%clk 0:00:27.7]} 30... Bg5 {[%clk
0:01:50.7]} 31. Nxf5 {[%clk 0:00:22]} 31... exf5 {[%clk 0:01:50.6]} 32. Qxf5
{[%clk 0:00:22.9]} 32... Bd8 {[%clk 0:01:47.5]} 33. Nb4 {[%clk 0:00:20.6]} 33...
Qd7 {[%clk 0:01:46.3]} 34. Qxd7+ {[%clk 0:00:14.5]} 34... Kxd7 {[%clk
0:01:38.8]} 35. Nxd5 {[%clk 0:00:15.2]} 35... Ne6 {[%clk 0:01:39.5]} 36. Ra7+
{[%clk 0:00:13.3]} 36... Ke8 {[%clk 0:01:39.8]} 37. Rb7 {[%clk 0:00:13]} 37...
Ng5 {[%clk 0:01:39.2]} 38. Rxb5 {[%clk 0:00:09.7]} 38... Nf3+ {[%clk 0:01:39.4]}
39. Kg2 {[%clk 0:00:08.6]} 39... Kd7 {[%clk 0:01:30.6]} 40. Ne3 {[%clk
0:00:06.5]} 40... Rxh2+ {[%clk 0:01:29.9]} 41. Kg3 {[%clk 0:00:06.5]} 41... Rh1
{[%clk 0:01:30]} 42. Kxg4 {[%clk 0:00:06.5]} 42... Nd2 {[%clk 0:01:29.9]} 43.
Rb7+ {[%clk 0:00:06.1]} 43... Ke6 {[%clk 0:01:28.1]} 44. d5+ {[%clk 0:00:05.8]}
44... Kxe5 {[%clk 0:01:28]} 45. Rxf7 {[%clk 0:00:06.6]} 45... Rg1+ {[%clk
0:01:27.4]} 46. Kh3 {[%clk 0:00:06.4]} 46... Ke4 {[%clk 0:01:16.8]} 47. Ng4
{[%clk 0:00:06.4]} 47... Rb1 {[%clk 0:01:06]} 48. d6 {[%clk 0:00:06]} 48... Kd5
{[%clk 0:01:04.6]} 49. d7 {[%clk 0:00:06.2]} 49... Ke6 {[%clk 0:01:04.9]} 50.
Rh7 {[%clk 0:00:05.7]} 50... Rxb2 {[%clk 0:01:05.2]} 51. Ne3 {[%clk 0:00:05.1]}
51... Rb3 {[%clk 0:01:05.7]} 52. Nxc4 {[%clk 0:00:02.8]} 52... Rxc3+ {[%clk
0:01:05.6]} 53. Kg2 {[%clk 0:00:02.8]} 53... Nxc4 {[%clk 0:01:05.8]} 54. Kf2
{[%clk 0:00:03]} 54... Ne5 {[%clk 0:01:05.8]} 55. Ke2 {[%clk 0:00:03.4]} 55...
Nxd7 {[%clk 0:01:06.2]} 56. Kd2 {[%clk 0:00:03.9]} 56... Rc6 {[%clk 0:01:04.6]}
57. Kd3 {[%clk 0:00:04.2]} 57... Nf6 {[%clk 0:01:04.4]} 58. Rh8 {[%clk 0:00:04]}
58... Ba5 {[%clk 0:01:04.3]} 59. Ke2 {[%clk 0:00:04.2]} 59... Rc3 {[%clk
0:01:04.4]} 60. Kf2 {[%clk 0:00:04]} 60... Bb6+ {[%clk 0:01:04.4]} 61. Ke2
{[%clk 0:00:04.3]} 61... Kf5 {[%clk 0:01:01.3]} 0-1

[Event "Early-Titled-Tuesday-Blitz-January-16-2024"]
[Site "Chess.com"]
[Date "2024.01.16"]
[Round "2"]
[White "Kotlyar_K"]
[Black "Vladimir_Zakhartsov"]
[Result "0-1"]
[WhiteElo "2568"]
[BlackElo "2853"]
[TimeControl "180+1"]
[EndTime "8:18:29 PST"]
[Termination "Vladimir_Zakhartsov won by resignation"]

1. e4 {[%clk 0:03:00.9]} 1... c5 {[%clk 0:02:59.6]} 2. Nf3 {[%clk 0:03:00]} 2...
d6 {[%clk 0:03:00]} 3. d4 {[%clk 0:03:00.4]} 3... Nf6 {[%clk 0:03:00.6]} 4. Nc3
{[%clk 0:02:57.9]} 4... cxd4 {[%clk 0:03:00.8]} 5. Qxd4 {[%clk 0:02:58.8]} 5...
Nc6 {[%clk 0:02:48.6]} 6. Bb5 {[%clk 0:02:58.5]} 6... Bd7 {[%clk 0:02:47.8]} 7.
Bxc6 {[%clk 0:02:58.6]} 7... Bxc6 {[%clk 0:02:48.2]} 8. Bg5 {[%clk 0:02:58.8]}
8... e6 {[%clk 0:02:41.7]} 9. O-O-O {[%clk 0:02:57.9]} 9... Be7 {[%clk
0:02:39.4]} 10. Qd3 {[%clk 0:02:58.2]} 10... Qa5 {[%clk 0:02:38]} 11. Bd2 {[%clk
0:02:56.8]} 11... Qa6 {[%clk 0:02:30.2]} 12. Qxa6 {[%clk 0:02:41.9]} 12... bxa6
{[%clk 0:02:31.1]} 13. Rhe1 {[%clk 0:02:40]} 13... O-O {[%clk 0:02:22.1]} 14.
Bf4 {[%clk 0:02:34.5]} 14... Rfd8 {[%clk 0:02:20.7]} 15. Nd4 {[%clk 0:02:31.8]}
15... Bb7 {[%clk 0:02:19.2]} 16. Bg5 {[%clk 0:02:22.4]} 16... h6 {[%clk
0:02:19.5]} 17. Bd2 {[%clk 0:02:10.4]} 17... Rac8 {[%clk 0:01:58.6]} 18. f3
{[%clk 0:02:08.9]} 18... Nd7 {[%clk 0:01:57.2]} 19. Bf4 {[%clk 0:01:57.8]} 19...
Nb6 {[%clk 0:01:45.1]} 20. Nb3 {[%clk 0:01:37.9]} 20... Nc4 {[%clk 0:01:42.8]}
21. Nd2 {[%clk 0:01:26.2]} 21... g5 {[%clk 0:01:09.8]} 22. Bg3 {[%clk
0:01:15.5]} 22... Nb6 {[%clk 0:01:01.9]} 23. Nb3 {[%clk 0:01:15.1]} 23... d5
{[%clk 0:00:56.5]} 24. exd5 {[%clk 0:00:56.7]} 24... Nxd5 {[%clk 0:00:56.1]} 25.
Nxd5 {[%clk 0:00:55.3]} 25... Bxd5 {[%clk 0:00:57]} 26. Bf2 {[%clk 0:00:52.1]}
26... a5 {[%clk 0:00:53.5]} 27. Kb1 {[%clk 0:00:43.3]} 27... a4 {[%clk
0:00:53.4]} 28. Nd4 {[%clk 0:00:43.2]} 28... Bf6 {[%clk 0:00:44.3]} 29. c3
{[%clk 0:00:41.7]} 29... a3 {[%clk 0:00:43]} 30. Nb5 {[%clk 0:00:28]} 30... axb2
{[%clk 0:00:38.2]} 31. Bxa7 {[%clk 0:00:20.2]} 31... Ra8 {[%clk 0:00:30.1]} 32.
Bd4 {[%clk 0:00:20]} 32... Rdb8 {[%clk 0:00:20.7]} 33. Rd2 {[%clk 0:00:13]}
33... Rxb5 {[%clk 0:00:18.8]} 34. Bxf6 {[%clk 0:00:10.9]} 34... Bxa2+ {[%clk
0:00:18.9]} 35. Kc2 {[%clk 0:00:11.5]} 35... b1=Q+ {[%clk 0:00:19]} 36. Rxb1
{[%clk 0:00:11.9]} 36... Bxb1+ {[%clk 0:00:19.4]} 37. Kc1 {[%clk 0:00:12.8]}
37... Bg6 {[%clk 0:00:18.6]} 38. Kd1 {[%clk 0:00:12.1]} 38... Rd5 {[%clk
0:00:17.1]} 39. Ke2 {[%clk 0:00:13]} 39... Rxd2+ {[%clk 0:00:17.2]} 40. Kxd2
{[%clk 0:00:13.6]} 40... Ra2+ {[%clk 0:00:17.5]} 0-1